[Event "Titled Tuesday Blitz April 25 Early 2023"]
[White "Torres Dominguez, David"]
[Black "Rudzinska, Michalina"]
[WhiteFideId "2220857"]
[BlackFideId "1172883"]
[WhiteElo "1999"]
[BlackElo "2219"]
[Result "1-0"]
[Round "10"]
[TimeControl "180+2"]
[Date "2023.04.25"]
[WhiteClock "0:01:56"]
[BlackClock "0:01:52"]

1. e4 {[%clk 0:02:59]}  c6 {[%clk 0:02:58]} 2. Nf3 {[%clk 0:02:58]}  d5 {[%clk 0:02:57]} 3. d3 {[%clk 0:02:58]}  Qc7 {[%clk 0:02:43]} 4. Nc3 {[%clk 0:02:52]}  dxe4 {[%clk 0:02:40]} 5. dxe4 {[%clk 0:02:52]}  Bg4 {[%clk 0:02:40]} 6. h3 {[%clk 0:02:44]}  Bxf3 {[%clk 0:02:39]} 7. Qxf3 {[%clk 0:02:44]}  Nd7 {[%clk 0:02:39]} 8. Bf4 {[%clk 0:02:40]}  e5 {[%clk 0:02:38]} 9. Bd2 {[%clk 0:02:35]}  Ngf6 {[%clk 0:02:36]} 10. O-O-O {[%clk 0:02:34]}  O-O-O {[%clk 0:02:35]} 11. Bc4 {[%clk 0:02:29]}  Nb6 {[%clk 0:02:28]} 12. Bb3 {[%clk 0:02:29]}  Bc5 {[%clk 0:02:28]} 13. Bg5 {[%clk 0:02:16]}  Nbd7 {[%clk 0:02:10]} 14. Bxf7 {[%clk 0:02:13]}  Rhf8 {[%clk 0:02:08]} 15. Be6 {[%clk 0:02:09]}  Nd5 {[%clk 0:02:01]} 16. Bxd8 {[%clk 0:02:00]}  Qxd8 {[%clk 0:01:52]} 17. Qg4 {[%clk 0:01:56]} 1-0


[Site "https://www.chess.com"]

[Event "Titled Tuesday Blitz April 25 Early 2023"]
[White "Floresvillar Gonzalez, Luis Migu"]
[Black "Vidruska, Renate"]
[WhiteFideId "5100542"]
[BlackFideId "11601841"]
[WhiteElo "2040"]
[BlackElo "1976"]
[Result "0-1"]
[Round "10"]
[TimeControl "180+2"]
[Date "2023.04.25"]
[WhiteClock "0:00:13"]
[BlackClock "0:00:24"]

1. e4 {[%clk 0:03:00]}  e5 {[%clk 0:02:20]} 2. Nf3 {[%clk 0:02:59]}  Nc6 {[%clk 0:02:20]} 3. d4 {[%clk 0:02:58]}  exd4 {[%clk 0:02:19]} 4. Bc4 {[%clk 0:02:58]}  Nf6 {[%clk 0:02:14]} 5. e5 {[%clk 0:02:57]}  d5 {[%clk 0:01:59]} 6. Bb5 {[%clk 0:02:55]}  Ne4 {[%clk 0:01:56]} 7. Nxd4 {[%clk 0:02:54]}  Bd7 {[%clk 0:01:54]} 8. O-O {[%clk 0:02:52]}  Bc5 {[%clk 0:01:51]} 9. Be3 {[%clk 0:02:46]}  Bb6 {[%clk 0:01:49]} 10. Nxc6 {[%clk 0:02:42]}  bxc6 {[%clk 0:01:43]} 11. Bxb6 {[%clk 0:02:41]}  axb6 {[%clk 0:01:39]} 12. Bd3 {[%clk 0:02:41]}  Nc5 {[%clk 0:01:38]} 13. Be2 {[%clk 0:02:36]}  O-O {[%clk 0:01:36]} 14. f4 {[%clk 0:02:34]}  f6 {[%clk 0:01:26]} 15. exf6 {[%clk 0:02:31]}  Qxf6 {[%clk 0:01:26]} 16. c3 {[%clk 0:02:29]}  Bf5 {[%clk 0:01:15]} 17. Nd2 {[%clk 0:02:28]}  Bd3 {[%clk 0:01:13]} 18. Bxd3 {[%clk 0:01:31]}  Nxd3 {[%clk 0:01:06]} 19. Qc2 {[%clk 0:01:30]}  Nxf4 {[%clk 0:00:54]} 20. Nb3 {[%clk 0:01:12]}  Qg5 {[%clk 0:00:51]} 21. Kh1 {[%clk 0:01:02]}  Rae8 {[%clk 0:00:50]} 22. Rae1 {[%clk 0:00:59]}  Rxe1 {[%clk 0:00:35]} 23. Rxe1 {[%clk 0:00:58]}  h6 {[%clk 0:00:22]} 24. Nd4 {[%clk 0:00:58]}  c5 {[%clk 0:00:21]} 25. Nf3 {[%clk 0:00:55]}  Qg6 {[%clk 0:00:19]} 26. Qxg6 {[%clk 0:00:51]}  Nxg6 {[%clk 0:00:20]} 27. Kg1 {[%clk 0:00:46]}  Ra8 {[%clk 0:00:20]} 28. a3 {[%clk 0:00:45]}  Kf7 {[%clk 0:00:21]} 29. Kf2 {[%clk 0:00:44]}  Re8 {[%clk 0:00:21]} 30. Re3 {[%clk 0:00:36]}  Rxe3 {[%clk 0:00:17]} 31. Kxe3 {[%clk 0:00:36]}  Ke6 {[%clk 0:00:18]} 32. g3 {[%clk 0:00:28]}  Ne5 {[%clk 0:00:19]} 33. Nxe5 {[%clk 0:00:20]}  Kxe5 {[%clk 0:00:20]} 34. a4 {[%clk 0:00:20]}  c6 {[%clk 0:00:20]} 35. b4 {[%clk 0:00:19]}  cxb4 {[%clk 0:00:19]} 36. cxb4 {[%clk 0:00:18]}  Kd6 {[%clk 0:00:20]} 37. a5 {[%clk 0:00:12]}  bxa5 {[%clk 0:00:20]} 38. bxa5 {[%clk 0:00:12]}  Kc5 {[%clk 0:00:21]} 39. a6 {[%clk 0:00:11]}  Kb6 {[%clk 0:00:21]} 40. Kd4 {[%clk 0:00:12]}  Kxa6 {[%clk 0:00:21]} 41. Kc5 {[%clk 0:00:12]}  Kb7 {[%clk 0:00:21]} 42. Kd6 {[%clk 0:00:11]}  d4 {[%clk 0:00:21]} 43. Ke6 {[%clk 0:00:11]}  d3 {[%clk 0:00:22]} 44. Kf7 {[%clk 0:00:12]}  d2 {[%clk 0:00:22]} 45. Kxg7 {[%clk 0:00:12]}  d1=Q {[%clk 0:00:23]} 46. Kxh6 {[%clk 0:00:13]}  Qg4 {[%clk 0:00:24]} 0-1


[Site "https://www.chess.com"]

[Event "Titled Tuesday Blitz April 25 Early 2023"]
[White "Quirke, Jeffrey"]
[Black "Maluco_do_Natal_00"]
[WhiteFideId "2013029"]
[WhiteElo "2218"]
[BlackElo "2011"]
[Result "1-0"]
[Round "10"]
[TimeControl "180+2"]
[Date "2023.04.25"]
[WhiteClock "0:00:14"]
[BlackClock "0:00:01"]

1. e4 {[%clk 0:03:00]}  c5 {[%clk 0:02:59]} 2. Nc3 {[%clk 0:02:59]}  g6 {[%clk 0:02:55]} 3. f4 {[%clk 0:03:00]}  Nc6 {[%clk 0:02:55]} 4. Nf3 {[%clk 0:03:00]}  Bg7 {[%clk 0:02:55]} 5. a4 {[%clk 0:03:00]}  d6 {[%clk 0:02:53]} 6. Bb5 {[%clk 0:02:58]}  Bd7 {[%clk 0:02:50]} 7. d3 {[%clk 0:02:57]}  a6 {[%clk 0:02:46]} 8. Bxc6 {[%clk 0:02:56]}  Bxc6 {[%clk 0:02:46]} 9. O-O {[%clk 0:02:54]}  e6 {[%clk 0:02:44]} 10. Qe1 {[%clk 0:02:53]}  Ne7 {[%clk 0:02:36]} 11. f5 {[%clk 0:02:15]}  gxf5 {[%clk 0:02:29]} 12. Bg5 {[%clk 0:02:11]}  f6 {[%clk 0:02:13]} 13. Bd2 {[%clk 0:01:58]}  Qd7 {[%clk 0:01:54]} 14. Nh4 {[%clk 0:01:56]}  fxe4 {[%clk 0:01:44]} 15. dxe4 {[%clk 0:01:55]}  O-O-O {[%clk 0:01:38]} 16. Be3 {[%clk 0:01:43]}  Ng6 {[%clk 0:01:26]} 17. Rd1 {[%clk 0:01:34]}  Qc7 {[%clk 0:01:18]} 18. Qg3 {[%clk 0:01:10]}  Ne5 {[%clk 0:01:08]} 19. Qh3 {[%clk 0:01:03]}  Qe7 {[%clk 0:00:48]} 20. Nd5 {[%clk 0:00:57]}  Bxd5 {[%clk 0:00:44]} 21. exd5 {[%clk 0:00:57]}  Rde8 {[%clk 0:00:43]} 22. dxe6 {[%clk 0:00:49]}  Qxe6 {[%clk 0:00:43]} 23. Nf5 {[%clk 0:00:49]}  Bf8 {[%clk 0:00:37]} 24. Bh6 {[%clk 0:00:41]}  d5 {[%clk 0:00:31]} 25. Bxf8 {[%clk 0:00:34]}  Rhxf8 {[%clk 0:00:08]} 26. Nd6+ {[%clk 0:00:34]}  Kc7 {[%clk 0:00:04]} 27. Nxe8+ {[%clk 0:00:35]}  Rxe8 {[%clk 0:00:03]} 28. Qxe6 {[%clk 0:00:34]}  Rxe6 {[%clk 0:00:03]} 29. Rxd5 {[%clk 0:00:33]}  Kc6 {[%clk 0:00:03]} 30. Rd8 {[%clk 0:00:32]}  b5 {[%clk 0:00:02]} 31. axb5+ {[%clk 0:00:30]}  axb5 {[%clk 0:00:02]} 32. Rf8 {[%clk 0:00:29]}  Nd7 {[%clk 0:00:01]} 33. Rf7 {[%clk 0:00:29]}  h5 {[%clk 0:00:02]} 34. h3 {[%clk 0:00:19]}  c4 {[%clk 0:00:01]} 35. Rh7 {[%clk 0:00:15]}  Re5 {[%clk 0:00:01]} 36. Rd1 {[%clk 0:00:14]} 1-0


[Site "https://www.chess.com"]

[Event "Titled Tuesday Blitz April 25 Early 2023"]
[White "Lohani, Sujana"]
[Black "Tymrakiewicz, Rafal"]
[WhiteFideId "12311987"]
[BlackFideId "1108832"]
[WhiteElo "1718"]
[BlackElo "2151"]
[Result "0-1"]
[Round "10"]
[TimeControl "180+2"]
[Date "2023.04.25"]
[WhiteClock "0:00:01"]
[BlackClock "0:00:18"]

1. d4 {[%clk 0:03:00]}  Nf6 {[%clk 0:02:57]} 2. Nf3 {[%clk 0:03:01]}  d5 {[%clk 0:02:56]} 3. c4 {[%clk 0:03:02]}  c6 {[%clk 0:02:56]} 4. Qc2 {[%clk 0:02:57]}  a6 {[%clk 0:02:55]} 5. Bf4 {[%clk 0:02:49]}  g6 {[%clk 0:02:52]} 6. cxd5 {[%clk 0:02:48]}  Nxd5 {[%clk 0:02:51]} 7. Bg3 {[%clk 0:02:46]}  Bf5 {[%clk 0:02:39]} 8. e4 {[%clk 0:02:45]}  Nb4 {[%clk 0:02:37]} 9. Qe2 {[%clk 0:02:38]}  Bg4 {[%clk 0:02:34]} 10. a3 {[%clk 0:02:27]}  Qa5 {[%clk 0:02:15]} 11. Nc3 {[%clk 0:02:23]}  c5 {[%clk 0:02:06]} 12. d5 {[%clk 0:02:10]}  c4 {[%clk 0:02:00]} 13. Rd1 {[%clk 0:01:41]}  Nd3+ {[%clk 0:01:58]} 14. Rxd3 {[%clk 0:01:41]}  cxd3 {[%clk 0:01:57]} 15. Qxd3 {[%clk 0:01:42]}  Bg7 {[%clk 0:01:55]} 16. Nd4 {[%clk 0:01:37]}  Qb6 {[%clk 0:01:50]} 17. e5 {[%clk 0:01:28]}  Qxb2 {[%clk 0:01:42]} 18. Be2 {[%clk 0:01:18]}  Bxe2 {[%clk 0:01:42]} 19. Ndxe2 {[%clk 0:01:13]}  Nd7 {[%clk 0:01:39]} 20. O-O {[%clk 0:01:12]}  Nxe5 {[%clk 0:01:32]} 21. Bxe5 {[%clk 0:01:03]}  Bxe5 {[%clk 0:01:33]} 22. Na4 {[%clk 0:01:03]}  Qb5 {[%clk 0:01:29]} 23. Qe3 {[%clk 0:00:54]}  f6 {[%clk 0:00:49]} 24. Nb6 {[%clk 0:00:42]}  Rd8 {[%clk 0:00:49]} 25. a4 {[%clk 0:00:41]}  Qb4 {[%clk 0:00:40]} 26. f4 {[%clk 0:00:06]}  Bd6 {[%clk 0:00:39]} 27. Qe6 {[%clk 0:00:03]}  Qxb6+ {[%clk 0:00:37]} 28. Kh1 {[%clk 0:00:04]}  Qc5 {[%clk 0:00:30]} 29. Ng3 {[%clk 0:00:03]}  Qc8 {[%clk 0:00:30]} 30. Qe4 {[%clk 0:00:03]}  O-O {[%clk 0:00:30]} 31. f5 {[%clk 0:00:03]}  Bxg3 {[%clk 0:00:27]} 32. hxg3 {[%clk 0:00:03]}  Qd7 {[%clk 0:00:23]} 33. fxg6 {[%clk 0:00:03]}  h6 {[%clk 0:00:19]} 34. g7 {[%clk 0:00:03]}  Kxg7 {[%clk 0:00:19]} 35. Qh4 {[%clk 0:00:02]}  Qxd5 {[%clk 0:00:17]} 36. Rf4 {[%clk 0:00:02]}  Qd1+ {[%clk 0:00:16]} 37. Kh2 {[%clk 0:00:02]}  Rd5 {[%clk 0:00:16]} 38. Rg4+ {[%clk 0:00:03]}  Rg5 {[%clk 0:00:16]} 39. Rd4 {[%clk 0:00:02]}  Qh5 {[%clk 0:00:15]} 40. Rd7 {[%clk 0:00:01]}  Qxh4+ {[%clk 0:00:15]} 41. gxh4 {[%clk 0:00:02]}  Re5 {[%clk 0:00:15]} 42. Rxb7 {[%clk 0:00:02]}  Kf7 {[%clk 0:00:16]} 43. Ra7 {[%clk 0:00:01]}  a5 {[%clk 0:00:17]} 44. Ra6 {[%clk 0:00:02]}  h5 {[%clk 0:00:17]} 45. Kh3 {[%clk 0:00:02]}  Rg8 {[%clk 0:00:17]} 46. g3 {[%clk 0:00:03]}  Rg4 {[%clk 0:00:18]} 47. Rb6 {[%clk 0:00:01]}  Rxa4 {[%clk 0:00:18]} 0-1


[Site "https://www.chess.com"]

[Event "Titled Tuesday Blitz April 25 Early 2023"]
[White "Amitpal, Singh"]
[Black "Larina, Maria"]
[WhiteFideId "5012899"]
[BlackFideId "24113182"]
[WhiteElo "2107"]
[BlackElo "1848"]
[Result "1-0"]
[Round "10"]
[TimeControl "180+2"]
[Date "2023.04.25"]
[WhiteClock "0:00:37"]
[BlackClock "0:00:24"]

1. e4 {[%clk 0:03:00]}  c6 {[%clk 0:02:59]} 2. d4 {[%clk 0:02:59]}  d5 {[%clk 0:02:58]} 3. exd5 {[%clk 0:02:58]}  cxd5 {[%clk 0:02:58]} 4. Bd3 {[%clk 0:02:58]}  Nc6 {[%clk 0:02:57]} 5. c3 {[%clk 0:02:58]}  e5 {[%clk 0:02:57]} 6. dxe5 {[%clk 0:02:55]}  Nxe5 {[%clk 0:02:58]} 7. Bf4 {[%clk 0:02:54]}  Nxd3+ {[%clk 0:02:58]} 8. Qxd3 {[%clk 0:02:55]}  Nf6 {[%clk 0:02:56]} 9. Nd2 {[%clk 0:02:54]}  Be7 {[%clk 0:02:47]} 10. Ngf3 {[%clk 0:02:53]}  O-O {[%clk 0:02:47]} 11. Kf1 {[%clk 0:02:51]}  Qb6 {[%clk 0:02:38]} 12. Qe3 {[%clk 0:02:49]}  Bc5 {[%clk 0:02:32]} 13. Nd4 {[%clk 0:02:33]}  Qxb2 {[%clk 0:02:14]} 14. Rb1 {[%clk 0:02:20]}  Qxa2 {[%clk 0:02:14]} 15. Qg3 {[%clk 0:02:11]}  Ne4 {[%clk 0:01:49]} 16. Nxe4 {[%clk 0:02:08]}  Qxb1+ {[%clk 0:01:49]} 17. Ke2 {[%clk 0:02:05]}  Qxe4+ {[%clk 0:01:44]} 18. Be3 {[%clk 0:02:03]}  Bxd4 {[%clk 0:01:40]} 19. cxd4 {[%clk 0:02:03]}  Bf5 {[%clk 0:01:40]} 20. f3 {[%clk 0:02:03]}  Qd3+ {[%clk 0:01:39]} 21. Kf2 {[%clk 0:02:02]}  Rfe8 {[%clk 0:01:37]} 22. Qf4 {[%clk 0:01:59]}  Rac8 {[%clk 0:01:30]} 23. Re1 {[%clk 0:01:52]}  Rc2+ {[%clk 0:01:29]} 24. Kg3 {[%clk 0:01:53]}  Bg6 {[%clk 0:01:19]} 25. Bf2 {[%clk 0:01:51]}  Rce2 {[%clk 0:01:00]} 26. Rxe2 {[%clk 0:01:46]}  Qxe2 {[%clk 0:01:01]} 27. Qc7 {[%clk 0:01:31]}  Qe7 {[%clk 0:00:55]} 28. Qa5 {[%clk 0:01:29]}  Qc7+ {[%clk 0:00:49]} 29. Qxc7 {[%clk 0:01:25]}  h5 {[%clk 0:00:32]} 30. Qxb7 {[%clk 0:01:22]}  a5 {[%clk 0:00:31]} 31. Qxd5 {[%clk 0:01:12]}  Re2 {[%clk 0:00:23]} 32. f4 {[%clk 0:00:54]}  h4+ {[%clk 0:00:19]} 33. Kf3 {[%clk 0:00:53]}  Be4+ {[%clk 0:00:19]} 34. Qxe4 {[%clk 0:00:52]}  Rxe4 {[%clk 0:00:18]} 35. Kxe4 {[%clk 0:00:52]}  Kf8 {[%clk 0:00:18]} 36. d5 {[%clk 0:00:51]}  Ke7 {[%clk 0:00:17]} 37. Bc5+ {[%clk 0:00:50]}  Kd7 {[%clk 0:00:16]} 38. g3 {[%clk 0:00:49]}  hxg3 {[%clk 0:00:16]} 39. hxg3 {[%clk 0:00:50]}  g6 {[%clk 0:00:17]} 40. Ke5 {[%clk 0:00:48]}  a4 {[%clk 0:00:17]} 41. Ba3 {[%clk 0:00:47]}  Ke8 {[%clk 0:00:16]} 42. Kf6 {[%clk 0:00:46]}  Kd7 {[%clk 0:00:15]} 43. Kxf7 {[%clk 0:00:45]}  Kc7 {[%clk 0:00:15]} 44. Kxg6 {[%clk 0:00:45]}  Kb6 {[%clk 0:00:15]} 45. Kf6 {[%clk 0:00:44]}  Kb5 {[%clk 0:00:16]} 46. Ke6 {[%clk 0:00:43]}  Kc4 {[%clk 0:00:16]} 47. d6 {[%clk 0:00:43]}  Kb3 {[%clk 0:00:17]} 48. d7 {[%clk 0:00:43]}  Kxa3 {[%clk 0:00:17]} 49. d8=Q {[%clk 0:00:43]}  Kb3 {[%clk 0:00:17]} 50. Qa5 {[%clk 0:00:42]}  a3 {[%clk 0:00:17]} 51. Qxa3+ {[%clk 0:00:42]}  Kxa3 {[%clk 0:00:17]} 52. f5 {[%clk 0:00:42]}  Kb4 {[%clk 0:00:18]} 53. f6 {[%clk 0:00:43]}  Kc5 {[%clk 0:00:19]} 54. f7 {[%clk 0:00:43]}  Kd4 {[%clk 0:00:20]} 55. f8=Q {[%clk 0:00:44]}  Ke4 {[%clk 0:00:21]} 56. g4 {[%clk 0:00:43]}  Ke3 {[%clk 0:00:20]} 57. g5 {[%clk 0:00:43]}  Ke4 {[%clk 0:00:21]} 58. g6 {[%clk 0:00:43]}  Ke3 {[%clk 0:00:22]} 59. g7 {[%clk 0:00:43]}  Ke4 {[%clk 0:00:23]} 60. g8=Q {[%clk 0:00:43]}  Ke3 {[%clk 0:00:24]} 61. Qg3+ {[%clk 0:00:40]}  Kd4 {[%clk 0:00:25]} 62. Qff4+ {[%clk 0:00:39]}  Kc5 {[%clk 0:00:25]} 63. Qc3+ {[%clk 0:00:37]}  Kb6 {[%clk 0:00:24]} 64. Qfb4+ {[%clk 0:00:37]}  Ka7 {[%clk 0:00:24]} 65. Qca3# {[%clk 0:00:37]} 1-0


[Site "https://www.chess.com"]

[Event "Titled Tuesday Blitz April 25 Early 2023"]
[White "Bortnyk, Olexandr"]
[Black "Sarana, Alexey"]
[WhiteFideId "14120828"]
[BlackFideId "24133795"]
[WhiteElo "2734"]
[BlackElo "2714"]
[Result "1-0"]
[Round "11"]
[TimeControl "180+2"]
[Date "2023.04.25"]
[WhiteClock "0:00:27"]
[BlackClock "0:00:04"]

1. d4 {[%clk 0:03:00]}  Nf6 {[%clk 0:02:57]} 2. Nc3 {[%clk 0:03:01]}  d5 {[%clk 0:02:58]} 3. Bf4 {[%clk 0:03:02]}  a6 {[%clk 0:02:56]} 4. e3 {[%clk 0:03:02]}  c5 {[%clk 0:02:57]} 5. dxc5 {[%clk 0:03:03]}  e6 {[%clk 0:02:53]} 6. Na4 {[%clk 0:03:01]}  Nbd7 {[%clk 0:02:53]} 7. b4 {[%clk 0:02:59]}  b6 {[%clk 0:02:54]} 8. c6 {[%clk 0:02:59]}  Bxb4+ {[%clk 0:02:54]} 9. c3 {[%clk 0:03:00]}  Ba5 {[%clk 0:02:55]} 10. cxd7+ {[%clk 0:02:59]}  Bxd7 {[%clk 0:02:55]} 11. Be5 {[%clk 0:02:58]}  Ne4 {[%clk 0:02:55]} 12. f3 {[%clk 0:02:28]}  f6 {[%clk 0:02:05]} 13. Bd4 {[%clk 0:02:15]}  e5 {[%clk 0:01:05]} 14. fxe4 {[%clk 0:02:13]}  exd4 {[%clk 0:01:04]} 15. Qxd4 {[%clk 0:02:12]}  Qe7 {[%clk 0:00:31]} 16. Nxb6 {[%clk 0:02:08]}  Qa3 {[%clk 0:00:21]} 17. Ne2 {[%clk 0:01:55]}  Bb5 {[%clk 0:00:16]} 18. Nxd5 {[%clk 0:01:46]}  Rc8 {[%clk 0:00:15]} 19. Kf2 {[%clk 0:01:45]}  O-O {[%clk 0:00:15]} 20. Rd1 {[%clk 0:01:31]}  Rfd8 {[%clk 0:00:15]} 21. Qa7 {[%clk 0:01:27]}  Kh8 {[%clk 0:00:09]} 22. Rd2 {[%clk 0:01:18]}  Rd7 {[%clk 0:00:09]} 23. Qd4 {[%clk 0:01:14]}  Rc4 {[%clk 0:00:09]} 24. Qd3 {[%clk 0:01:13]}  Rxc3 {[%clk 0:00:06]} 25. Qxc3 {[%clk 0:01:06]}  Bxc3 {[%clk 0:00:05]} 26. Nexc3 {[%clk 0:01:06]}  Bxf1 {[%clk 0:00:04]} 27. Rxf1 {[%clk 0:01:07]}  h6 {[%clk 0:00:05]} 28. Rb1 {[%clk 0:01:04]}  Rd8 {[%clk 0:00:05]} 29. Rb7 {[%clk 0:01:03]}  Rc8 {[%clk 0:00:05]} 30. Ne2 {[%clk 0:01:00]}  Qa5 {[%clk 0:00:05]} 31. Rdb2 {[%clk 0:00:57]}  Re8 {[%clk 0:00:05]} 32. Nef4 {[%clk 0:00:52]}  Rxe4 {[%clk 0:00:02]} 33. Rd7 {[%clk 0:00:32]}  h5 {[%clk 0:00:02]} 34. Rb8+ {[%clk 0:00:28]}  Kh7 {[%clk 0:00:02]} 35. Nxf6+ {[%clk 0:00:28]}  Kh6 {[%clk 0:00:03]} 36. Rh8+ {[%clk 0:00:27]}  Kg5 {[%clk 0:00:04]} 37. Nxe4+ {[%clk 0:00:27]} 1-0


[Site "https://www.chess.com"]

[Event "Titled Tuesday Blitz April 25 Early 2023"]
[White "Lazavik, Denis"]
[Black "Esipenko, Andrey"]
[WhiteFideId "13515110"]
[BlackFideId "24175439"]
[WhiteElo "2560"]
[BlackElo "2615"]
[Result "0-1"]
[Round "11"]
[TimeControl "180+2"]
[Date "2023.04.25"]
[WhiteClock "0:00:08"]
[BlackClock "0:00:44"]

1. d4 {[%clk 0:03:00]}  Nf6 {[%clk 0:02:59]} 2. c4 {[%clk 0:03:00]}  e6 {[%clk 0:02:59]} 3. Nf3 {[%clk 0:03:01]}  d5 {[%clk 0:02:57]} 4. g3 {[%clk 0:03:01]}  Bb4+ {[%clk 0:02:56]} 5. Bd2 {[%clk 0:03:01]}  Be7 {[%clk 0:02:56]} 6. Bg2 {[%clk 0:03:02]}  O-O {[%clk 0:02:57]} 7. O-O {[%clk 0:03:03]}  c6 {[%clk 0:02:57]} 8. Qc2 {[%clk 0:03:03]}  Nbd7 {[%clk 0:02:55]} 9. Rd1 {[%clk 0:03:00]}  b6 {[%clk 0:02:54]} 10. b3 {[%clk 0:03:01]}  a5 {[%clk 0:02:51]} 11. Bc3 {[%clk 0:02:59]}  Ba6 {[%clk 0:02:47]} 12. Nbd2 {[%clk 0:02:58]}  b5 {[%clk 0:02:38]} 13. Bb2 {[%clk 0:02:45]}  bxc4 {[%clk 0:02:08]} 14. bxc4 {[%clk 0:02:44]}  c5 {[%clk 0:02:05]} 15. dxc5 {[%clk 0:02:27]}  Rc8 {[%clk 0:01:58]} 16. cxd5 {[%clk 0:01:13]}  Bxc5 {[%clk 0:01:47]} 17. Qa4 {[%clk 0:01:04]}  Qb6 {[%clk 0:01:32]} 18. Bd4 {[%clk 0:01:02]}  Bxe2 {[%clk 0:01:30]} 19. Rdb1 {[%clk 0:00:57]}  Qa6 {[%clk 0:01:20]} 20. dxe6 {[%clk 0:00:55]}  fxe6 {[%clk 0:01:20]} 21. Rc1 {[%clk 0:00:49]}  e5 {[%clk 0:01:03]} 22. Qb3+ {[%clk 0:00:42]}  Kh8 {[%clk 0:01:03]} 23. Bxc5 {[%clk 0:00:42]}  Nxc5 {[%clk 0:01:04]} 24. Qa3 {[%clk 0:00:35]}  Nd3 {[%clk 0:00:51]} 25. Rxc8 {[%clk 0:00:33]}  Rxc8 {[%clk 0:00:52]} 26. Ne1 {[%clk 0:00:30]}  Nxf2 {[%clk 0:00:43]} 27. h3 {[%clk 0:00:10]}  Qb6 {[%clk 0:00:43]} 28. Kh2 {[%clk 0:00:10]}  N6g4+ {[%clk 0:00:43]} 29. hxg4 {[%clk 0:00:10]}  Nxg4+ {[%clk 0:00:44]} 30. Kh1 {[%clk 0:00:08]}  Qh6+ {[%clk 0:00:44]} 0-1


[Site "https://www.chess.com"]

[Event "Titled Tuesday Blitz April 25 Early 2023"]
[White "Naroditsky, Daniel"]
[Black "Harsha Bharathakoti"]
[WhiteFideId "2026961"]
[BlackFideId "5078776"]
[WhiteElo "2633"]
[BlackElo "2504"]
[Result "1/2-1/2"]
[Round "11"]
[TimeControl "180+2"]
[Date "2023.04.25"]
[WhiteClock "0:00:03"]
[BlackClock "0:00:07"]

1. d4 {[%clk 0:03:00]}  Nf6 {[%clk 0:02:59]} 2. Nc3 {[%clk 0:03:01]}  d5 {[%clk 0:02:57]} 3. Bf4 {[%clk 0:02:58]}  e6 {[%clk 0:02:53]} 4. Nb5 {[%clk 0:02:58]}  Na6 {[%clk 0:02:52]} 5. e3 {[%clk 0:02:59]}  Be7 {[%clk 0:02:40]} 6. Nf3 {[%clk 0:02:59]}  O-O {[%clk 0:02:39]} 7. h4 {[%clk 0:02:59]}  Bd7 {[%clk 0:02:34]} 8. h5 {[%clk 0:02:53]}  Ne4 {[%clk 0:02:32]} 9. Nd2 {[%clk 0:02:38]}  Nxd2 {[%clk 0:02:13]} 10. Qxd2 {[%clk 0:02:39]}  Bxb5 {[%clk 0:02:00]} 11. Bxb5 {[%clk 0:02:39]}  Bd6 {[%clk 0:02:00]} 12. h6 {[%clk 0:02:34]}  g6 {[%clk 0:01:58]} 13. c3 {[%clk 0:02:14]}  Nb8 {[%clk 0:01:46]} 14. Bd3 {[%clk 0:02:06]}  c5 {[%clk 0:01:44]} 15. dxc5 {[%clk 0:02:01]}  Bxc5 {[%clk 0:01:32]} 16. O-O-O {[%clk 0:01:52]}  Nc6 {[%clk 0:01:26]} 17. Kb1 {[%clk 0:01:46]}  Rc8 {[%clk 0:01:18]} 18. e4 {[%clk 0:01:28]}  d4 {[%clk 0:01:18]} 19. Bb5 {[%clk 0:01:26]}  dxc3 {[%clk 0:01:10]} 20. Qxc3 {[%clk 0:01:26]}  Bd4 {[%clk 0:01:04]} 21. Qa3 {[%clk 0:00:56]}  Qb6 {[%clk 0:00:51]} 22. Bxc6 {[%clk 0:00:48]}  Rxc6 {[%clk 0:00:48]} 23. Rd2 {[%clk 0:00:47]}  e5 {[%clk 0:00:41]} 24. Rhd1 {[%clk 0:00:32]}  Bc5 {[%clk 0:00:37]} 25. Qc3 {[%clk 0:00:17]}  Bd4 {[%clk 0:00:25]} 26. Qb3 {[%clk 0:00:15]}  Qxb3 {[%clk 0:00:19]} 27. axb3 {[%clk 0:00:16]}  f6 {[%clk 0:00:10]} 28. Be3 {[%clk 0:00:08]}  Bxe3 {[%clk 0:00:10]} 29. fxe3 {[%clk 0:00:09]}  Rc7 {[%clk 0:00:09]} 30. Rd6 {[%clk 0:00:08]}  Rff7 {[%clk 0:00:06]} 31. Rd8+ {[%clk 0:00:07]}  Rf8 {[%clk 0:00:06]} 32. R8d6 {[%clk 0:00:08]}  Rff7 {[%clk 0:00:05]} 33. g4 {[%clk 0:00:08]}  g5 {[%clk 0:00:04]} 34. b4 {[%clk 0:00:06]}  Kf8 {[%clk 0:00:03]} 35. Rd8+ {[%clk 0:00:05]}  Ke7 {[%clk 0:00:04]} 36. b5 {[%clk 0:00:04]}  Rf8 {[%clk 0:00:01]} 37. R8d6 {[%clk 0:00:04]}  Kf7 {[%clk 0:00:01]} 38. b6 {[%clk 0:00:02]}  axb6 {[%clk 0:00:02]} 39. Rxb6 {[%clk 0:00:03]}  Kg6 {[%clk 0:00:02]} 40. Rd5 {[%clk 0:00:02]}  Rcf7 {[%clk 0:00:03]} 41. Rxe5 {[%clk 0:00:03]}  Kxh6 {[%clk 0:00:04]} 42. Rf5 {[%clk 0:00:03]}  Kg7 {[%clk 0:00:03]} 43. e5 {[%clk 0:00:03]}  h6 {[%clk 0:00:02]} 44. exf6+ {[%clk 0:00:03]}  Rxf6 {[%clk 0:00:03]} 45. Rxb7+ {[%clk 0:00:04]}  Kg6 {[%clk 0:00:03]} 46. e4 {[%clk 0:00:03]}  Re8 {[%clk 0:00:04]} 47. Rb4 {[%clk 0:00:02]}  Rfe6 {[%clk 0:00:05]} 48. e5 {[%clk 0:00:01]}  Rxe5 {[%clk 0:00:05]} 49. Rb6+ {[%clk 0:00:02]}  Kg7 {[%clk 0:00:05]} 50. Rb7+ {[%clk 0:00:02]}  Kg6 {[%clk 0:00:06]} 51. Rff7 {[%clk 0:00:03]}  Re1+ {[%clk 0:00:05]} 52. Ka2 {[%clk 0:00:03]}  Ra8+ {[%clk 0:00:03]} 53. Kb3 {[%clk 0:00:03]}  Re3+ {[%clk 0:00:04]} 54. Kc2 {[%clk 0:00:04]}  Re4 {[%clk 0:00:03]} 55. Rg7+ {[%clk 0:00:04]}  Kf6 {[%clk 0:00:04]} 56. Rbf7+ {[%clk 0:00:03]}  Ke5 {[%clk 0:00:04]} 57. Rf5+ {[%clk 0:00:04]}  Kd4 {[%clk 0:00:04]} 58. Rd7+ {[%clk 0:00:04]}  Ke3 {[%clk 0:00:05]} 59. Rd3+ {[%clk 0:00:04]}  Ke2 {[%clk 0:00:06]} 60. Rd2+ {[%clk 0:00:04]}  Ke3 {[%clk 0:00:06]} 61. Rd3+ {[%clk 0:00:03]}  Ke2 {[%clk 0:00:06]} 62. Rg3 {[%clk 0:00:03]}  Rc8+ {[%clk 0:00:05]} 63. Kb3 {[%clk 0:00:03]}  Re3+ {[%clk 0:00:04]} 64. Rxe3+ {[%clk 0:00:04]}  Kxe3 {[%clk 0:00:05]} 65. Rf6 {[%clk 0:00:05]}  Rb8+ {[%clk 0:00:04]} 66. Kc3 {[%clk 0:00:05]}  Rc8+ {[%clk 0:00:04]} 67. Kb3 {[%clk 0:00:05]}  h5 {[%clk 0:00:05]} 68. gxh5 {[%clk 0:00:06]}  g4 {[%clk 0:00:06]} 69. h6 {[%clk 0:00:05]}  g3 {[%clk 0:00:05]} 70. Rg6 {[%clk 0:00:05]}  Kf3 {[%clk 0:00:05]} 71. Rf6+ {[%clk 0:00:04]}  Ke3 {[%clk 0:00:06]} 72. Rg6 {[%clk 0:00:03]}  Kf3 {[%clk 0:00:06]} 73. h7 {[%clk 0:00:04]}  Rh8 {[%clk 0:00:05]} 74. Rf6+ {[%clk 0:00:03]}  Ke3 {[%clk 0:00:06]} 75. Rg6 {[%clk 0:00:02]}  Kf3 {[%clk 0:00:06]} 76. Rf6+ {[%clk 0:00:03]}  Ke3 {[%clk 0:00:07]} 77. Rg6 {[%clk 0:00:03]}  Kf3 {[%clk 0:00:07]} 1/2-1/2


[Site "https://www.chess.com"]